fUSD/lending_fUSD_20260103
["ID","MTS","AMOUNT","RATE_DAILY","PERIOD"]
[400373246,1767453032451,-1181.12922722,0.00036946,2]
[400373247,1767453032465,-424.03221248,0.00036946,2]
[400373250,1767453037780,-301.8959828,0.00036946,2]
[400373251,1767453037793,-2737.90344638,0.00036946,2]
[400373252,1767453037841,-754012.00123611,0.00036946,2]
[400373253,1767453037852,-1983.84697537,0.00036946,2]
[400373254,1767453037862,-500.0,0.00036949,7]
[400373255,1767453037872,-500.0,0.00036949,7]
[400373256,1767453037883,-500.0,0.00036949,7]
[400373257,1767453037893,-150.0,0.00036949,7]
[400373258,1767453037903,-500.0,0.00036949,2]
[400373259,1767453037914,-188.97089951,0.00036949,11]
[400373260,1767453037925,-500.0,0.00036949,7]
[400373261,1767453037937,-500.0,0.00036949,7]
[400373262,1767453037951,-150.0,0.00036949,7]
[400373263,1767453037961,-150.0,0.00036949,2]
[400373264,1767453037971,-150.0,0.00036949,2]
[400373265,1767453037983,-500.0,0.00036949,7]
[400373266,1767453037993,-500.0,0.00036949,7]
[400373267,1767453038003,-4762.0,0.0003698,5]
[400373268,1767453038013,-151.0,0.00037027,2]
[400373269,1767453038024,-151.0,0.00037027,2]
[400373270,1767453038034,-151.0,0.00037027,2]
[400373271,1767453038044,-151.0,0.00037027,2]
[400373272,1767453038055,-151.0,0.00037027,2]
[400373273,1767453038065,-151.0,0.00037027,2]
[400373275,1767453038075,-151.0,0.00037027,2]
[400373277,1767453038085,-151.0,0.00037027,2]
[400373279,1767453038095,-151.0,0.00037027,2]
[400373281,1767453038106,-151.0,0.00037027,2]
[400373283,1767453038116,-151.0,0.00037027,2]
[400373285,1767453038128,-151.0,0.00037027,2]
[400373287,1767453038138,-151.0,0.00037027,2]
[400373289,1767453038148,-151.0,0.00037027,2]
[400373291,1767453038159,-151.0,0.00037027,2]
[400373293,1767453038169,-151.0,0.00037027,2]
[400373295,1767453038179,-151.0,0.00037027,2]
[400373297,1767453038189,-151.0,0.00037027,2]
[400373299,1767453038199,-151.0,0.00037027,2]
[400373301,1767453038210,-151.0,0.00037027,2]
[400373303,1767453038220,-300.0,0.00037048,10]
[400373305,1767453038231,-300.0,0.00037048,10]
[400373307,1767453038241,-60964.5596859,0.00037049,2]
[400373309,1767453038252,-4788.7837714,0.00037049,2]
[400373311,1767453038261,-87571.9681696,0.00037049,2]
[400373313,1767453038272,-181.9282088,0.00037049,2]
[400373315,1767453038282,-500.0,0.00037086,7]
[400373317,1767453038292,-500.0,0.00037086,7]
[400373319,1767453038302,-500.0,0.00037086,7]
[400373321,1767453038313,-200.0,0.00037086,7]
[400373323,1767453038323,-500.0,0.00037086,2]
[400373325,1767453038333,-541.45248213,0.00037086,7]
[400373327,1767453038343,-500.0,0.00037086,7]
[400373329,1767453038353,-295.77800655,0.00037086,7]
[400373331,1767453038363,-500.0,0.00037086,7]
[400373333,1767453038373,-500.0,0.00037086,7]
[400373335,1767453038383,-1000.0,0.000372,2]
[400373337,1767453038392,-290.0,0.00037218,14]
[400373339,1767453038403,-500.0,0.00037223,7]
[400373341,1767453038415,-500.0,0.00037223,7]
[400373343,1767453038425,-500.0,0.00037223,7]
[400373345,1767453038436,-500.0,0.00037223,2]
[400373347,1767453038447,-500.0,0.00037223,7]
[400373349,1767453038457,-500.0,0.00037223,7]
[400373351,1767453038467,-500.0,0.00037223,7]
[400373353,1767453038477,-16126.09835353,0.00037297,2]
[400373355,1767453038487,-211873.09917359,0.000373,7]
[400373357,1767453038497,-1000.0,0.000373,90]
[400373359,1767453038507,-1000.0,0.000373,90]
[400373361,1767453038519,-557.36,0.000373,90]
[400373363,1767453038530,-784.427,0.000373,120]
[400373365,1767453038540,-461.20411228,0.00037314,2]
[400373367,1767453038552,-500.0,0.0003736,7]
[400373370,1767453038562,-500.0,0.0003736,7]
[400373372,1767453038575,-281.12055057,0.0003736,7]
[400373374,1767453038584,-500.0,0.0003736,2]
[400373376,1767453038595,-625.74918809,0.0003736,7]
[400373378,1767453038605,-500.0,0.0003736,7]
[400373380,1767453038615,-500.0,0.0003736,7]
[400373382,1767453038625,-1611.442164,0.00037439,2]
[400373384,1767453038636,-290.0,0.00037492,14]
[400373386,1767453038648,-230.0,0.00037497,7]
[400373388,1767453038659,-500.0,0.00037497,7]
[400373390,1767453038668,-166.66,0.00037506,30]
[400373392,1767453038680,-529.42069008,0.0003753,2]
[400373394,1767453038689,-6592.69996949,0.0003753,2]
[400373396,1767453038699,-472.47,0.0003766,2]
[400373398,1767453038709,-457.32367886,0.00037725,2]
[400373400,1767453038719,-151.0,0.00037729,15]
[400373402,1767453038729,-151.0,0.00037729,15]
[400373404,1767453038739,-198.3363488,0.00037729,15]
[400373406,1767453038749,-1177.58596831,0.0003773,30]
[400373408,1767453038759,-166.37433606,0.00037731,2]
[400373410,1767453038769,-354.69124396,0.00037731,2]
[400373412,1767453038779,-290.0,0.00037766,14]
[400373414,1767453038790,-1314.22,0.00037797,2]
[400373416,1767453038800,-1542.47669911,0.00037911,120]
[400373418,1767453038810,-158.0,0.0003792,120]
[400373420,1767453038821,-250.0,0.00038,7]
[400373423,1767453038831,-290.02,0.0003804,14]
[400373424,1767453038841,-1508.6,0.00038049,120]
[400373426,1767453038851,-500.0,0.00038143,2]
[400373428,1767453038862,-500.0,0.00038143,2]
[400373431,1767453038872,-500.0,0.00038143,2]
[400373432,1767453038886,-500.0,0.00038143,2]
[400373434,1767453038896,-500.0,0.00038143,2]
[400373437,1767453038907,-500.0,0.00038143,2]
[400373439,1767453038917,-500.0,0.00038143,2]
[400373441,1767453038928,-448.72451731,0.00038143,2]
[400373443,1767453038938,-500.0,0.00038143,2]
[400373444,1767453038952,-500.0,0.00038143,2]
[400373446,1767453038962,-500.0,0.00038143,2]
[400373448,1767453038973,-500.0,0.00038143,2]
[400373450,1767453038983,-500.0,0.00038143,2]
[400373453,1767453038994,-500.0,0.00038143,2]
[400373454,1767453039004,-500.0,0.00038143,2]
[400373456,1767453039014,-500.0,0.00038143,2]
[400373459,1767453039025,-500.0,0.00038143,2]
[400373461,1767453039036,-500.0,0.00038143,2]
[400373462,1767453039046,-500.0,0.00038143,2]
[400373464,1767453039057,-500.0,0.00038143,2]
[400373467,1767453039067,-500.0,0.00038143,2]
[400373469,1767453039077,-500.0,0.00038143,2]
[400373470,1767453039088,-500.0,0.00038143,2]
[400373473,1767453039098,-529.42069008,0.00038214,2]
[400373474,1767453039109,-6592.69996949,0.00038214,2]
[400373477,1767453039119,-166.66,0.00038235,30]
[400373478,1767453039130,-151.0,0.00038356,120]
[400373480,1767453039140,-151.0,0.00038356,120]
[400373483,1767453039151,-151.0,0.00038356,120]
[400373484,1767453039160,-151.0,0.00038356,120]
[400373486,1767453039171,-151.0,0.00038356,120]
[400373488,1767453039181,-151.0,0.00038356,120]
[400373491,1767453039191,-457.32367886,0.00038604,2]
[400373493,1767453039201,-500.0,0.00038684,30]
[400373494,1767453039211,-500.0,0.00038684,30]
[400373496,1767453039221,-596.54782275,0.00038684,30]
[400373498,1767453039232,-500.0,0.00038684,120]
[400373500,1767453039241,-500.0,0.00038684,120]
[400373503,1767453039252,-1500.0,0.00038724,120]
[400373504,1767453039262,-163.53,0.00038801,2]
[400373506,1767453039273,-300.0,0.00038838,2]
[400373508,1767453039283,-300.0,0.00038838,2]
[400373510,1767453039293,-300.0,0.00038838,2]
[400373512,1767453039303,-300.0,0.00038838,2]
[400373515,1767453039313,-300.0,0.00038838,2]
[400373517,1767453039323,-300.0,0.00038838,2]
[400373519,1767453039334,-300.0,0.00038838,2]
[400373521,1767453039344,-300.0,0.00038838,2]
[400373523,1767453039354,-300.0,0.00038838,2]
[400373524,1767453039364,-300.0,0.00038838,2]
[400373527,1767453039375,-300.0,0.00038838,2]
[400373529,1767453039385,-586.61130899,0.00038838,2]
[400373530,1767453039395,-300.0,0.00038838,2]
[400373533,1767453039405,-300.0,0.00038838,2]
[400373534,1767453039415,-300.0,0.00038838,2]
[400373535,1767453039425,-529.42069008,0.00038897,2]
[400373536,1767453039435,-6592.69996949,0.00038897,2]
[400373537,1767453039445,-158.0,0.00039,120]
[400373538,1767453039455,-328.0,0.00039,2]
[400373539,1767453039465,-1500.0,0.00039111,120]
[400373540,1767453039475,-166.84,0.00039114,2]
[400373541,1767453039486,-151.0,0.00039212,120]
[400373542,1767453039496,-151.0,0.00039212,120]
[400373543,1767453039506,-500.51555347,0.000393,5]
[400373545,1767453039517,-472.47,0.00039453,2]
[400373547,1767453039529,-245.0,0.00039479,2]
[400373549,1767453039539,-457.32367886,0.00039483,2]
[400373551,1767453039549,-560.0,0.00039533,5]
[400373553,1767453039559,-529.42069008,0.00039581,2]
[400373555,1767453039569,-6592.69996949,0.00039581,2]
[400373557,1767453039579,-197.81,0.00039654,2]
[400373559,1767453039589,-188.97089951,0.000398,15]
[400373561,1767453039599,-169.59,0.00039836,2]
[400373563,1767453039609,-178.77,0.00039836,2]
[400373565,1767453039619,-1177.58596831,0.00039899,30]
[400373567,1767453039629,-119395.67920812,0.000399,120]
[400373569,1767453039643,-2177.62818745,0.000399,120]
[400373571,1767453039655,-278.35226355,0.000399,120]
[400373586,1767453039791,-2927.07096423,0.000399,120]
[400373598,1767453039883,-1463.57776,0.000399,120]
[400373600,1767453039894,-1042.63281571,0.000399,120]
[400373603,1767453039906,-660.1508,0.000399,120]
[400373605,1767453039918,-1174.92781406,0.000399,120]
[400373607,1767453039930,-7005.37445566,0.000399,120]
[400373611,1767453039962,151.0,0.00031409,2]
[400373613,1767453039975,-1557.38467929,0.000399,120]
[400373615,1767453039987,-1060.43124583,0.000399,120]
[400373617,1767453039999,-7839.97251778,0.000399,120]
[400373643,1767453040242,-14718.80407629,0.000399,120]
[400373925,1767453043998,-46167.91904207,0.00035716,2]
[400373927,1767453045077,-6894.7224772,0.00035716,2]
[400373928,1767453045089,-1182.47375131,0.00035716,2]
[400373929,1767453045102,-945754.88472942,0.00035716,2]
[400373930,1767453045112,-320595.56152474,0.000399,120]
[400373931,1767453045122,-151.0,0.000399,120]
[400373932,1767453045133,-227.371074,0.000399,120]
[400373933,1767453045143,-250.0,0.0004,7]
[400373934,1767453045154,-250.0,0.0004,7]
[400373935,1767453045163,-168.0,0.00040181,2]
[400373936,1767453045174,-168.42,0.00040216,14]
[400373937,1767453045185,-529.42069008,0.00040265,15]
[400373938,1767453045196,-6592.69996949,0.00040265,15]
[400373939,1767453045207,-457.32367886,0.00040363,28]
[400373940,1767453045218,-171.58,0.0004038,120]
[400373941,1767453045228,-171.58,0.0004048,120]
[400373942,1767453045238,-171.58116165,0.0004058,120]
[400373943,1767453045248,-1000.0,0.00040801,2]
[400373944,1767453045257,-168.0,0.00040819,2]
[400373946,1767453045268,-168.0,0.00040849,2]
[400373947,1767453045278,-168.0,0.00040884,2]
[400373948,1767453045288,-529.42069008,0.00040949,15]
[400373949,1767453045299,-6592.69996949,0.00040949,15]
[400373950,1767453045310,-158.29,0.00041,14]
[400373951,1767453045321,-171.57,0.00041,30]
[400373952,1767453045331,-161.7,0.00041,14]
[400373953,1767453045341,-164.0,0.00041,10]
[400373954,1767453045352,-376.49,0.00041002,120]
[400373955,1767453045362,-150.0,0.00041033,2]
[400373956,1767453045372,-150.0,0.00041033,2]
[400373957,1767453045383,-150.0,0.00041033,2]
[400373958,1767453045393,-150.0,0.00041033,2]
[400373959,1767453045403,-150.0,0.00041033,2]
[400373960,1767453045413,-320.46,0.00041033,2]
[400373961,1767453045423,-999.0,0.00041095,120]
[400373962,1767453045434,-600.0,0.00041096,120]
[400373963,1767453045445,-261.04993985,0.00041096,2]
[400373964,1767453045456,-426.22652052,0.00041096,58]
[400373965,1767453045467,-519.56512478,0.00041096,31]
[400373966,1767453045477,-246.51,0.00041113,120]
[400373967,1767453045488,-500.0,0.00041236,60]
[400373968,1767453045498,-600.0,0.00041236,60]
[400373969,1767453045508,-310.97932763,0.00041236,60]
[400373970,1767453045518,-457.32367886,0.00041242,28]
[400373971,1767453045528,-472.47,0.00041247,2]
[400373972,1767453045539,-152.0,0.00041271,3]
[400373973,1767453045550,-337.0842912,0.00041302,120]
[400373974,1767453045561,-255555.0,0.000414,120]
[400373975,1767453045571,-269.65709335,0.00041402,2]
[400373976,1767453045581,-150.0,0.00041479,30]
[400373977,1767453045593,-150.0,0.00041479,30]
[400373978,1767453045604,-150.0,0.00041479,30]
[400373979,1767453045614,-227.08441591,0.00041479,30]
[400373980,1767453045625,-150.0,0.00041479,30]
[400373981,1767453045635,-150.0,0.00041479,30]
[400373982,1767453045646,-150.0,0.00041479,30]
[400373983,1767453045656,-150.0,0.00041479,30]
[400373984,1767453045668,-150.0,0.00041479,30]
[400373985,1767453045678,-150.0,0.00041479,30]
[400373986,1767453045689,-150.0,0.00041479,30]
[400373987,1767453045699,-150.0,0.00041479,30]
[400373988,1767453045710,-150.0,0.000415,30]
[400373990,1767453045720,-800.0,0.000415,15]
[400373991,1767453045730,-800.0,0.000415,15]
[400373992,1767453045739,-800.0,0.000415,15]
[400373993,1767453045749,-800.0,0.000415,15]
[400373994,1767453045759,-800.0,0.000415,15]
[400373995,1767453045769,-800.0,0.000415,15]
[400373996,1767453045779,-800.0,0.000415,15]
[400373997,1767453045789,-800.0,0.000415,15]
[400373998,1767453045799,-800.0,0.000415,15]
[400373999,1767453045809,-800.0,0.000415,15]
[400374000,1767453045819,-800.0,0.000415,15]
[400374001,1767453045829,-800.0,0.000415,15]
[400374002,1767453045839,-800.0,0.000415,15]
[400374003,1767453045849,-800.0,0.000415,15]
[400374004,1767453045860,-800.0,0.000415,15]
[400374005,1767453045870,-800.0,0.000415,15]
[400374006,1767453045880,-22747.38783705,0.000415,2]
[400374007,1767453045893,-419330.61453142,0.000415,2]
[400374008,1767453045980,-61.85322318,0.000415,2]
[400374009,1767453045991,-1339.7867671,0.000415,2]
[400374010,1767453046003,-57125.86295693,0.000415,2]
[400374011,1767453046013,-150.0,0.00041502,30]
[400374012,1767453046023,-150.0,0.00041503,30]
[400374013,1767453046032,-150.0,0.00041508,30]
[400374014,1767453046042,-150.0,0.00041511,30]
[400374015,1767453046052,-150.0,0.0004152,30]
[400374016,1767453046062,-150.0,0.00041522,30]
[400374017,1767453046074,-150.0,0.00041525,30]
[400374018,1767453046084,-150.0,0.00041526,30]
[400374019,1767453046094,-150.0,0.00041537,30]
[400374020,1767453046104,-150.0,0.0004154,30]
[400374021,1767453046114,-150.0,0.00041542,30]
[400374022,1767453046124,-175.64,0.00041548,14]
[400374023,1767453046134,-150.0,0.00041548,30]
[400374024,1767453046144,-150.0,0.00041549,30]
[400374025,1767453046154,-150.0,0.0004156,30]
[400374026,1767453046164,-150.0,0.00041565,30]
[400374027,1767453046174,-150.0,0.00041565,30]
[400374028,1767453046184,-150.0,0.00041565,30]
[400374029,1767453046194,-150.0,0.00041571,30]
[400374030,1767453046204,-150.0,0.00041573,30]
[400374031,1767453046214,-150.0,0.00041573,30]
[400374032,1767453046224,-150.0,0.0004158,30]
[400374033,1767453046233,-150.0,0.00041581,30]
[400374034,1767453046243,-984.72431561,0.00041582,7]
[400374035,1767453046253,-150.0,0.00041594,30]
[400374036,1767453046264,-150.0,0.00041594,30]
[400374037,1767453046274,-150.0,0.00041596,30]
[400374038,1767453046284,-150.0,0.000416,30]
[400374039,1767453046294,-150.0,0.00041605,30]
[400374040,1767453046304,-150.0,0.00041605,30]
[400374041,1767453046313,-150.0,0.00041608,30]
[400374042,1767453046323,-150.0,0.00041617,30]
[400374043,1767453046333,-150.0,0.00041619,30]
[400374044,1767453046343,-150.0,0.0004162,30]
[400374045,1767453046353,-10000.0,0.00041621,2]
[400374046,1767453046363,-150.0,0.00041622,30]
[400374047,1767453046374,-529.42069008,0.00041632,15]
[400374048,1767453046385,-6592.69996949,0.00041632,15]
[400374049,1767453046395,-150.0,0.00041636,30]
[400374050,1767453046407,-150.0,0.0004164,30]
[400374051,1767453046417,-150.0,0.0004164,30]
[400374052,1767453046426,-150.0,0.00041642,30]
[400374053,1767453046655,-600.0,0.00041644,120]
[400374054,1767453046666,-150.0,0.00041651,30]
[400374055,1767453046677,-150.0,0.00041651,30]
[400374056,1767453046687,-150.0,0.00041651,30]
[400374057,1767453046697,-150.0,0.0004166,30]
[400374058,1767453046706,-150.0,0.00041663,30]
[400374059,1767453046716,-150.0,0.00041666,30]
[400374060,1767453046726,-150.0,0.00041667,30]
[400374061,1767453046736,-150.0,0.00041679,30]
[400374062,1767453046745,-150.0,0.00041681,30]
[400374063,1767453046756,-150.0,0.00041683,30]
[400374064,1767453046766,-176.7162164,0.00041684,30]
[400374065,1767453046776,-150.0,0.00041686,30]
[400374066,1767453046786,-150.0,0.00041689,30]
[400374067,1767453046796,-150.0,0.00041694,30]
[400374068,1767453046806,-150.0,0.00041699,30]
[400374069,1767453046816,-150.0,0.00041701,30]
[400374070,1767453046826,-150.0,0.00041708,30]
[400374071,1767453046836,-150.0,0.00041709,30]
[400374072,1767453046845,-150.0,0.00041712,30]
[400374073,1767453046856,-150.0,0.00041721,30]
[400374074,1767453046866,-1259.0,0.00041722,14]
[400374075,1767453046876,-1259.0,0.00041722,14]
[400374076,1767453046886,-1259.0,0.00041722,14]
[400374077,1767453046896,-153.0,0.00041722,14]
[400374078,1767453046906,-153.0,0.00041722,14]
[400374079,1767453046916,-153.0,0.00041722,14]
[400374080,1767453046926,-153.0,0.00041722,14]
[400374081,1767453046936,-153.0,0.00041722,14]
[400374082,1767453046946,-153.0,0.00041722,14]
[400374083,1767453046960,-153.0,0.00041722,14]
[400374084,1767453046972,-1259.0,0.00041722,14]
[400374085,1767453046982,-153.0,0.00041722,14]
[400374086,1767453046992,-1259.0,0.00041722,14]
[400374087,1767453047002,-153.0,0.00041722,14]
[400374088,1767453047015,-153.0,0.00041722,14]
[400374089,1767453047024,-153.0,0.00041722,14]
[400374090,1767453047034,-151.0,0.00041722,14]
[400374091,1767453047045,-151.0,0.00041722,14]
[400374092,1767453047055,-1259.0,0.00041722,14]
[400374093,1767453047065,-151.0,0.00041722,14]
[400374094,1767453047075,-1259.0,0.00041722,14]
[400374095,1767453047085,-151.0,0.00041722,14]
[400374096,1767453047095,-1259.0,0.00041722,14]
[400374097,1767453047105,-151.0,0.00041722,14]
[400374098,1767453047115,-245.97854717,0.00041722,14]
[400374099,1767453047124,-1259.0,0.00041722,14]
[400374100,1767453047134,-153.0,0.00041722,14]
[400374101,1767453047144,-1259.0,0.00041722,14]
[400374102,1767453047153,-153.0,0.00041722,14]
[400374103,1767453047164,-1259.0,0.00041722,14]
[400374104,1767453047174,-153.0,0.00041722,14]
[400374105,1767453047184,-1259.0,0.00041722,14]
[400374106,1767453047195,-153.0,0.00041722,14]
[400374107,1767453047205,-1259.0,0.00041722,14]
[400374108,1767453047214,-153.0,0.00041722,14]
[400374109,1767453047225,-1259.0,0.00041722,14]
[400374110,1767453047234,-153.0,0.00041722,14]
[400374111,1767453047244,-151.0,0.00041722,14]
[400374112,1767453047255,-153.0,0.00041722,14]
[400374113,1767453047266,-1259.0,0.00041722,14]
[400374114,1767453047276,-151.0,0.00041722,14]
[400374115,1767453047286,-1215.75227175,0.00041722,14]
[400374116,1767453047297,-151.0,0.00041722,14]
[400374117,1767453047307,-153.0,0.00041722,14]
[400374118,1767453047317,-151.0,0.00041722,14]
[400374119,1767453047332,-1259.0,0.00041722,14]
[400374120,1767453047342,-153.0,0.00041722,14]
[400374121,1767453047351,-1259.0,0.00041722,14]
[400374122,1767453047362,-153.0,0.00041722,14]
[400374123,1767453047373,-151.0,0.00041722,14]
[400374124,1767453047384,-1259.0,0.00041722,14]
[400374125,1767453047395,-153.0,0.00041722,14]
[400374126,1767453047405,-151.0,0.00041722,14]
[400374127,1767453047415,-1255.0,0.00041722,14]
[400374128,1767453047426,-289.5901744,0.00041722,14]
[400374129,1767453047436,-151.0,0.00041722,14]
[400374130,1767453047446,-151.0,0.00041722,14]
[400374131,1767453047456,-151.0,0.00041722,14]
[400374132,1767453047466,-151.0,0.00041722,14]
[400374133,1767453047476,-151.0,0.00041722,14]
[400374134,1767453047487,-151.0,0.00041722,14]
[400374135,1767453047498,-151.0,0.00041722,14]
[400374136,1767453047508,-151.0,0.00041722,14]
[400374137,1767453047518,-151.0,0.00041722,14]
[400374138,1767453047533,-151.0,0.00041722,14]
[400374139,1767453047544,-151.0,0.00041722,14]
[400374140,1767453047555,-151.0,0.00041722,14]
[400374141,1767453047565,-151.0,0.00041722,14]
[400374142,1767453047575,-151.0,0.00041722,14]
[400374143,1767453047586,-151.0,0.00041722,14]
[400374144,1767453047596,-151.0,0.00041722,14]
[400374145,1767453047606,-151.0,0.00041722,14]
[400374146,1767453047616,-151.0,0.00041722,14]
[400374147,1767453047627,-151.0,0.00041722,14]
[400374148,1767453047637,-151.0,0.00041722,14]
[400374149,1767453047648,-269.65709335,0.00041722,2]
[400374150,1767453047659,-150.0,0.0004173,30]
[400374151,1767453047669,-150.0,0.0004173,30]
[400374152,1767453047679,-150.0,0.00041732,30]
[400374153,1767453047690,-150.0,0.00041735,30]
[400374154,1767453047700,-150.0,0.00041737,30]
[400374155,1767453047711,-150.0,0.00041737,30]
[400374156,1767453047722,-150.0,0.00041737,30]
[400374157,1767453047735,-150.0,0.00041741,30]
[400374158,1767453047745,-192.0,0.00041747,30]
[400374159,1767453047755,-150.0,0.00041755,30]
[400374160,1767453047765,-150.0,0.00041759,30]
[400374161,1767453047775,-150.0,0.00041761,30]
[400374162,1767453047785,-150.0,0.00041761,30]
[400374163,1767453047796,-150.0,0.00041765,30]
[400374164,1767453047806,-13603.0319661,0.00041777,2]
[400374165,1767453047818,-150.0,0.00041778,30]
[400374166,1767453047827,-150.0,0.00041779,30]
[400374167,1767453047838,-150.0,0.00041781,30]
[400374168,1767453047848,-150.0,0.00041782,30]
[400374169,1767453047858,-600.0,0.00041784,60]
[400374170,1767453047868,-150.0,0.00041785,30]
[400374171,1767453047879,-163.53,0.00041786,2]
[400374172,1767453047889,-150.0,0.00041793,30]
[400374173,1767453047900,-150.0,0.00041794,30]
[400374174,1767453047910,-150.0,0.00041801,30]
[400374175,1767453047919,-150.0,0.00041801,30]
[400374176,1767453047930,-150.0,0.00041805,30]
[400374177,1767453047940,-150.0,0.00041821,30]
[400374178,1767453047950,-150.0,0.00041822,30]
[400374179,1767453047960,-150.0,0.00041822,30]
[400374180,1767453047974,-150.0,0.00041822,30]
[400374181,1767453047984,-150.0,0.00041824,30]
[400374182,1767453047994,-150.0,0.00041824,30]
[400374183,1767453048004,-150.0,0.00041828,30]
[400374184,1767453048014,-1068.5220898,0.00041839,2]
[400374185,1767453048024,-19539.9472822,0.00041839,2]
[400374186,1767453048034,-150.0,0.00041841,30]
[400374187,1767453048045,-200.0,0.00041845,120]
[400374188,1767453048056,-150.0,0.00041846,30]
[400374189,1767453048065,-150.0,0.00041851,30]
[400374190,1767453048076,-150.0,0.00041852,30]
[400374191,1767453048085,-150.0,0.00041855,30]
[400374192,1767453048094,-150.0,0.00041855,30]
[400374193,1767453048104,-150.0,0.00041861,30]
[400374194,1767453048114,-150.0,0.00041865,30]
[400374195,1767453048123,-150.0,0.00041869,30]
[400374196,1767453048134,-150.0,0.00041875,30]
[400374197,1767453048143,-150.0,0.00041879,30]
[400374198,1767453048153,-150.0,0.00041882,30]
[400374199,1767453048163,-150.0,0.00041887,30]
[400374200,1767453048173,-150.0,0.00041887,30]
[400374201,1767453048183,-150.0,0.00041892,30]
[400374202,1767453048193,-150.0,0.00041898,30]
[400374203,1767453048202,-150.0,0.00041902,30]
[400374205,1767453048212,-150.0,0.00041908,30]
[400374206,1767453048222,-150.0,0.00041908,30]
[400374207,1767453048232,-150.0,0.00041908,30]
[400374208,1767453048242,-1500.0,0.00041911,120]
[400374209,1767453048252,-150.0,0.00041915,30]
[400374210,1767453048262,-150.0,0.00041918,30]
[400374211,1767453048273,-150.0,0.00041921,30]
[400374212,1767453048284,-150.0,0.00041922,30]
[400374213,1767453048296,-150.0,0.00041937,30]
[400374214,1767453048306,-150.0,0.00041938,30]
[400374215,1767453048317,-150.0,0.00041942,30]
[400374216,1767453048327,-150.0,0.00041945,30]
[400374217,1767453048337,-150.0,0.00041949,30]
[400374218,1767453048347,-150.0,0.00041951,30]
[400374219,1767453048357,-150.0,0.00041952,30]
[400374220,1767453048368,-243.41817815,0.00041952,30]
[400374221,1767453048378,-150.0,0.00041952,30]
[400374222,1767453048388,-239.72930639,0.00041952,30]
[400374223,1767453048398,-150.0,0.00041961,30]
[400374224,1767453048408,-150.0,0.00041962,30]
[400374225,1767453048419,-150.0,0.00041965,30]
[400374226,1767453048429,-150.0,0.00041968,30]
[400374227,1767453048440,-150.0,0.00041981,30]
[400374228,1767453048450,-150.0,0.00041981,30]
[400374229,1767453048460,-150.0,0.00041982,30]
[400374230,1767453048470,-150.0,0.00041984,30]
[400374231,1767453048480,-150.0,0.00041988,30]
[400374232,1767453048490,-150.0,0.00041991,30]
[400374233,1767453048501,-150.0,0.00041994,30]
[400374234,1767453048511,-150.0,0.00041994,30]
[400374235,1767453048521,-150.0,0.00041994,30]
[400374236,1767453048531,-4049.7589377,0.00042,30]
[400374237,1767453048542,-1586.61609709,0.00042,120]
[400374238,1767453048552,-1401.94452661,0.00042,120]